Cogmind - Beta 14 @@@ ROGUE MODE // 2024.08.27 @ 20:21:58 Player: Grem Result: Destroyed by as-70023 with Assembled Maul Performance ------------- Evolutions (0) 0 Regions Visited (2) 400 Robots Destroyed (11) 55 Value Destroyed (208) 208 Prototype IDs (0) 0 Alien Tech Used (0) 0 Bonus (0) 0 TOTAL SCORE: 663 Bonus ------- None Cogmind --------- Core Integrity 0/250 Matter 255/300 Energy 92/100 System Corruption 0% Temperature Cool (27) Movement Flying (37) Location -10/Mines Parts ------- > --- POWER (1) -------- (None) > --- PROPULSION (2) --- Flight Unit Flight Unit > --- UTILITY (2) ------ Small Storage Unit > --- WEAPON (2) ------- Particle Gun > --- INVENTORY (8) ---- Light Ion Engine Light Treads Aluminum Leg Aluminum Leg Large Battery (200) High-capacity Battery (241) Medium Laser Peak State ------------ > --- POWER ------------ Ion Engine > --- PROPULSION ------- Aluminum Leg Aluminum Leg > --- UTILITY ---------- Small Storage Unit High-capacity Battery > --- WEAPON ----------- Particle Gun Grenade Launcher > --- INVENTORY -------- Light Ion Engine Light Treads Light Treads Light Treads Flight Unit Large Battery Medium Laser [Rating: 8] Favorites ----------- Power Ion Engine Engine Ion Engine Propulsion Aluminum Leg Treads Light Treads Leg Aluminum Leg Flight Unit Flight Unit Utility Small Storage Unit Storage Small Storage Unit Weapon Particle Gun Energy Gun Particle Gun Launcher Grenade Launcher Build | -11 -10 -10 ------- Run | Yrd Mat Min Slots Evolved . | . . . Power . | . . . Propulsion . | . . . Utility . | . . . Weapon . | . . . Parts Attached 16 | 5 5 6 Power 1 | 1 . . Engine 1 | 1 . . Core . | . . . Reactor . | . . . Propulsion 8 | 2 . 6 Treads 2 | . . 2 Leg 2 | 2 . . Wheel . | . . . Hover . | . . . Flight 4 | . . 4 Utility 4 | 1 3 . Device . | . . . Storage 4 | 1 3 . Processor . | . . . Hackware . | . . . Protection . | . . . Artifact . | . . . Weapon 3 | 1 2 . Energy Gun 2 | 1 1 . Energy Cannon . | . . . Ballistic Gun . | . . . Ballistic Cannon . | . . . Launcher 1 | . 1 . Special Weapon . | . . . Impact Weapon . | . . . Slashing Weapon . | . . . Piercing Weapon . | . . . Special Melee Weapon . | . . . Unidentified Prototypes . | . . . Parts Lost 3 | . . 3 Power 1 | . . 1 Propulsion 1 | . . 1 Utility . | . . . Weapon 1 | . . 1 Highest Loss Streak 3 | . . 3 To Critical Strikes . | . . . Average Slot Usage (%) 91 | . 94 84 Engine 12 | . 14 9 Treads 1 | . . 4 Leg 24 | . 28 14 Flight 2 | . . 9 Storage 26 | . 26 23 Energy Gun 14 | . 14 14 Launcher 9 | . 9 7 Peak Build Rating 8 | 5 8 8 Average Rating 6 | 3 7 6 On Entrance 4 | . 5 8 Naked Turns . | . . . Heaviest Build 20 | 12 20 20 Greatest Support 40 | 20 20 40 Greatest Overweight (x) . | . . . Average Overweight (x) . | . . . Largest Inventory Capacity 25 | 8 25 8 Average Capacity 7 | 7 8 8 Most Carried 8 | 5 8 8 Average Carried 5 | 2 5 7 Final Capacity 8 | 8 8 8 Final Carried 8 | 3 8 7 Class Distribution -------------------- 100% | Mutant Dominant Class ---------------- Mutant | -10/Materials Mutant | -10/Mines Resources | -11 -10 -10 ----------- Run | Yrd Mat Min Matter Collected 340 | 220 100 20 Remotely . | . . . Salvage Created 110 | . 110 . Parts 24 | . 24 . Haulers Intercepted . | . . . Recyclers Shooed . | . . . Parts Field Recycled . | . . . Retrieved Matter . | . . . Parts Self-Destructed . | . . . Prevented . | . . . Kills | -11 -10 -10 ------- Run | Yrd Mat Min Combat Hostiles Destroyed 8 | . 8 . Guns 1 | . 1 . AOE 7 | . 7 . Classes Destroyed 4 | . 4 . Builder 1 | . 1 . Watcher 2 | . 2 . Swarmer 6 | . 6 . Grunt 2 | . 2 . Best Kill Streak 11 | . 11 . Combat Bots Only 8 | . 8 . Max Kills in Single Turn 3 | . 3 . Gunslinging . | . . . Exploded 3 | . 3 . Melee . | . . . Uniques/NPCs Destroyed . | . . . Combat | -11 -10 -10 -------- Run | Yrd Mat Min Hostile Shots Fired 30 | . 11 19 Missed 4 | . 3 1 Damage Taken 713 | . 79 634 Core 255 | . 36 219 Absorbed by Shields . | . . . Core Remaining (%) 100 | 100 . . Volleys Fired 12 | . 7 5 Largest 1 | . 1 1 Hottest 65 | . 65 65 Shots Fired 12 | . 7 5 Gun 8 | . 3 5 Cannon . | . . . Launcher 4 | . 4 . Special . | . . . Kinetic . | . . . Thermal 8 | . 3 5 Explosive 4 | . 4 . Electromagnetic . | . . . Robot Hit Streak 2 | . 2 2 Robot Miss Streak 2 | . 1 2 Penetration Max . | . . . Secondary Targets . | . . . Shots Hit Robots 5 | . 2 3 Core Hits 17 | . 15 2 Critical Kills . | . . . Critical Parts Destroyed . | . . . Critical Strikes . | . . . Melee Attacks . | . . . Impact . | . . . Slashing . | . . . Piercing . | . . . Sneak Attacks . | . . . Combat Hostiles . | . . . Follow-up Attacks . | . . . Damage Inflicted 690 | . 629 61 Guns 86 | . 25 61 Cannons . | . . . Explosions 604 | . 604 . Melee . | . . . Ramming . | . . . Kinetic . | . . . Thermal 368 | . 307 61 Explosive 322 | . 322 . Electromagnetic . | . . . Impact . | . . . Slashing . | . . . Piercing . | . . . Highest Corruption . | . . . Average Corruption . | . . . Corruption Purged . | . . . Corruption Blocked . | . . . Overload Shots . | . . . Overflow Damage . | . . . Projectiles . | . . . Explosions . | . . . Melee . | . . . Knockbacks . | . . . Impact . | . . . Kinetic . | . . . Secondary . | . . . Self-Inflicted Damage 14 | . 14 . Shots 1 | . 1 . Rammed . | . . . Targets Rammed . | . . . Kicked . | . . . Crushed . | . . . Highest Temperature 30 | . 24 30 Average Temperature 13 | . 9 16 Received Heat Transfer . | . . . Siege Activations . | . . . Robots Corrupted . | . . . Combat Hostiles . | . . . Parts Fried . | . . . Impact Corruptions . | . . . Robots Melted . | . . . Combat Hostiles . | . . . Parts Melted . | . . . Heat Transferred 422 | . 274 148 Parts Sabotaged . | . . . Parts Stolen . | . . . Parts Stripped . | . . . Power Chain Reactions . | . . . Alert | -11 -10 -10 ------- Run | Yrd Mat Min Peak Influence 329 | . 329 127 Initial 127 | . . 127 Average 145 | . 190 122 Maximum Alert Level 1 | . 1 . Low Security (%) 63 | 100 40 100 Level 1 36 | . 59 . Level 2 . | . . . Level 3 . | . . . Level 4 . | . . . Level 5 . | . . . High Security . | . . . Max Security . | . . . Squads Dispatched . | . . . Investigation . | . . . Extermination . | . . . Reinforcement . | . . . Assault . | . . . Garrison . | . . . Intercept . | . . . Searches Triggered . | . . . Construction Impeded . | . . . Haulers Reinforced . | . . . Active Scanning Responses . | . . . Cargo Convoy Interrupts . | . . . Stealth | -11 -10 -10 --------- Run | Yrd Mat Min Distress Signals 2 | . 2 . Communications Jammed . | . . . Distress Signals . | . . . Times Spotted 21 | . 10 11 Peak Tracking Total 9 | . 7 9 Tactical Retreats 1 | . . 1 Traps | -11 -10 -10 ------- Run | Yrd Mat Min Traps Triggered . | . . . Indirectly . | . . . Trap Hack Attempts . | . . . Triggered . | . . . Disarmed . | . . . Reprogrammed . | . . . Reused . | . . . Traps Extracted . | . . . Installed . | . . . Triggered . | . . . Machines | -11 -10 -10 ---------- Run | Yrd Mat Min Machines Disabled 3 | . 3 . Max in Single Turn 2 | . 2 . Machines Repaired . | . . . Machines Dismantled . | . . . Machines Sabotaged . | . . . Overloaded Fab Kills . | . . . Hacking | -11 -10 -10 --------- Run | Yrd Mat Min Machines Accessed 2 | . 2 . Terminals 2 | . 2 . Fabricators . | . . . Repair Stations . | . . . Recycling Units . | . . . Scanalyzers . | . . . Garrison Access . | . . . Total Hacks 2 | . 2 . Successful 2 | . 2 . Failed . | . . . Catastrophic . | . . . Database Lockouts . | . . . Manual . | . . . Terminals 2 | . 2 . Fabricators . | . . . Repair Stations . | . . . Recycling Units . | . . . Scanalyzers . | . . . Garrison Access . | . . . Terminal Hacks 2 | . 2 . Locate Traps 1 | . 1 . Dispatch Records 1 | . 1 . Fabricator Hacks . | . . . Repair Station Hacks . | . . . Recycling Unit Hacks . | . . . Scanalyzer . | . . . Garrison Access Hacks . | . . . Unauthorized Hacks . | . . . Terminals . | . . . Fabricators . | . . . Repair Stations . | . . . Recycling Units . | . . . Scanalyzers . | . . . Garrison Access . | . . . Data Cores Recovered . | . . . Used . | . . . Hacking Detections 1 | . 1 . Full Trace Events . | . . . Feedback Events . | . . . Feedback Blocked . | . . . Robot Schematics Acquired . | . . . Robots Built . | . . . Authchips . | . . . Time . | . . . Total Robot Build Rating . | . . . Part Schematics Acquired . | . . . Parts Built . | . . . Authchips . | . . . Time . | . . . Total Part Build Rating . | . . . Parts Repaired . | . . . Time . | . . . Parts Recycled . | . . . Recycled Matter . | . . . Retrieved Matter . | . . . Retrieved Components . | . . . Parts Scanalyzed . | . . . Part Schematics Acquired . | . . . Parts Damaged . | . . . Bothacking | -11 -10 -10 ------------ Run | Yrd Mat Min Used RIF Installer . | . . . Robots Hacked . | . . . Non-combat . | . . . Combat . | . . . Robot Hacks Applied . | . . . Relay Couplers Released . | . . . Fabnet Peak Effective % . | . . . Robots Rewired . | . . . Allies Hacked . | . . . Hacks Repelled . | . . . Allies | -11 -10 -10 -------- Run | Yrd Mat Min Total Allies . | . . . Largest Group . | . . . Highest-Rated Group . | . . . Highest-Rated Ally . | . . . Total Orders . | . . . Ally Attacks . | . . . Total Damage . | . . . Kills . | . . . Allies Corrupted . | . . . Allies Melted . | . . . Intel | -11 -10 -10 ------- Run | Yrd Mat Min Robot Analysis Total . | . . . Derelict Logs Recovered . | . . . Drone Launches . | . . . Drone Recoveries . | . . . Exploration | -11 -10 -10 ------------- Run | Yrd Mat Min Turns Passed 433 | 65 266 102 Spaces Moved 348 | 55 190 103 Core 19 | 19 . . Treads 4 | . . 4 Legs 271 | 36 190 45 Wheels . | . . . Hover . | . . . Flight 54 | . . 54 Fastest Speed 37 | 50 120 37 Average Speed 103 | 95 120 78 Slowest Speed 160 | 120 120 160 Overloaded Moves . | . . . Propulsion Burnouts . | . . . Robots Hopped . | . . . Cave-ins Triggered . | . . . Exploration Rate (%) 28 | 4 48 34 Regions Visited 2 Branch Regions 1 Pre-discovered Areas . | . . . Known Exits Taken . | . . . Unknown Exits Taken 2 | 1 1 . Scrap Searched 2 | . . 2 Spaces Dug . | . . . Terrain Destroyed 33 | . 33 . Melee . | . . . Projectile . | . . . AOE 33 | . 33 . Terrain Rammed . | . . . Walls Destroyed . | . . . Machines Disabled . | . . . Actions | -11 -10 -10 --------- Run | Yrd Mat Min Total 407 | 67 221 119 Wait 11 | . 8 3 Move 346 | 54 189 103 Hop . | . . . Pick Up 17 | 8 9 . Fast Attach . | . . . Attach 10 | 5 3 2 Detach 2 | . 1 1 Swap 6 | . 2 4 Drop 3 | . 2 1 Fire 12 | . 7 5 Melee . | . . . Ram . | . . . Kick . | . . . Crush . | . . . Escape Stasis . | . . . Rewire . | . . . Trap . | . . . Miscellaneous . | . . . Route ------- -11/Scrapyard -10/Materials (discovered 2 exits: [*Min x2]) -10/Mines History --------- Turn | Location | Event 22 | -11/Scrapyard | Discovered new exit (range 14) 66 | -11/Scrapyard | Entered Materials 167 | -10/Materials | Discovered new exit (range 7) 194 | -10/Materials | Discovered new exit (range 15) 196 | -10/Materials | Destroyed 8 combat bots 318 | -10/Materials | Build established: Mutant 332 | -10/Materials | Entered Mines 363 | -10/Mines | Assembled infested the area 379 | -10/Mines | Met a Derelict bent on vengeance 402 | -10/Mines | Core integrity fell below 50% 404 | -10/Mines | Core integrity fell below 20% 434 | -10/Mines | Destroyed by as-70023 with Assembled Maul Last Messages --------------- C-30 ARC bursts open, deploying its payload. D-53 Grenadier unfolds itself. Grenade Launcher destroyed. as-86295 destroyed. U-05 Engineer lays Concrete. U-05 Engineer destroyed. U-05 Engineer lays Concrete. The unstable cave ceiling collapses. U-05 Engineer lays Concrete. The unstable cave ceiling collapses. T-07 Excavator destroyed. U-05 Engineer lays Concrete. Lgt. Treads destroyed. U-05 Engineer destroyed. The unstable cave ceiling collapses. as-02403 destroyed. Ion Engine destroyed. D-53 Grenadier destroyed. Dropped Lgt. Treads. R-06 Scavenger collects Lgt. Ion Engine. Map ----- +----------------------------------------------------+ | ??????????????????????????????????????????# | | ??????????????????????????????#???????????## ## | | ??????????????????????????????# ?#####?????####### | | ??????????????????????????? ## ## #?????????# | | ???????????????????????????? !% ???????### | | ????????????????????????????? ! ##???### | | ??????????????????????????????# ##??# | | ??????????????????????????????# ##?# | | ??????????????????????????????# ### | | ???????????????????????????????# # | | ????????????????????????????????# ### | | ?????????????????????????????????# ##?# | | ?????????????????????????????????## " #######??? | | ??????????????????????????????????## ##??????? | | ???????????????????????????????????## ##?????? | | ????????????????????????????????????## #?????? | | ????????????????????????????????????## #?????? | | ???????????????????????????????????## ##?????? | | ?????????????????????????????????### ###??????? | | ????????????????????????????????## ##????????# | | ????????????????????????????????# #?????????# | | ???????????????????????????????## #?????????# | | ?????????????????????????????### #?????????# | | ????????????????????????###### #?????????? | | ????????????????????????# a ##?????????? | | ????????????????????????#@### ##??????????? | | ????????????????? ??????# #?## #???????????? | | ??????????????## ""????# #??## ##??????????? | | ??????????????# """ ??# #???# ## ???? | | ??????????????# # ##### ???? | | ???????????????# ???? | | ????????????????# #### ???? | | ????????????????########## #??# ???? | | ?????????????????????????# #??# ### ????? | | ?????????????????????????# #??## #######?? ?????? | | ?????????????????????????# #???###???????????????? | | ?????????????????????????# #?????????????????????? | | ?????????????????????????#t!?????????????????????? | | ??????????????????????????r=?????????????????????? | | ?????????????????????????? ?????????????????????? | | ?????????????????????????? !?????????????????????? | | ??????????????????????????#=?????????????????????? | | ???????????????????????????##????????????????????? | | ?????????????????????????????????????????????????? | | ?????????????????????????????????????????????????? | | | | | | | | | | | +----------------------------------------------------+ Best States ------------- Heat Dissipation 25 Energy Generation 10 Energy Capacity 500 Matter Stores 300 Matter Capacity 300 Sight Range 16 Terrain Scan Density 10 Evasion (%) 62 Recoil Reduction 2 Item Schematics ----------------- None Robot Schematics ------------------ None Fabricated ------------ Nothing Alien Tech Used ----------------- None Achievements -------------- None Challenges ------------ None Game ------ Seed WarlordGodPit Manual? 0 Play Time 00:14:51 Cumulative 5.1 hours Start 2024.08.27 @ 19:01:23 End 2024.08.27 @ 20:21:58 Sessions 1 Manual Loads 0 Difficulty Rogue Special Mode None Game No. 7 Rogue 7 Adventurer 0 Explorer 0 Win Type - Total 0 Types 0/0/0/0/0/0/0/0/0 Lore% 2 Gallery% 10 Achievement% 10 Wizard Run 0 Options --------- Layout 1 ASCII 0 Keyboard 0 Movement Vi Keybinds 0 Fullscreen 2 Font 32/SmallcapsGlow Map View 50x35 Zoom Use 0% Tactical HUD 0 Map Filters NONE Filters NONE Steam 1 RUN: f645c717-51a9-4d2c-bea3-d1b1745312c6